fUSD/lending_fUSD_20241225
["ID","MTS","AMOUNT","RATE_DAILY","PERIOD"]
[346587480,1735117850185,-500.0,9.786e-05,2]
[346587481,1735117850195,-500.0,9.786e-05,2]
[346587482,1735117850204,-1203.93,9.786e-05,2]
[346587483,1735117850214,-500.0,9.786e-05,2]
[346587484,1735117850225,-500.0,9.786e-05,2]
[346587485,1735117850235,-500.0,9.786e-05,2]
[346587486,1735117850245,-500.0,9.786e-05,2]
[346587487,1735117850255,-747.63,9.786e-05,2]
[346587488,1735117850266,-786.22,9.786e-05,2]
[346587489,1735117850275,-500.0,9.786e-05,2]
[346587490,1735117850285,-500.0,9.786e-05,2]
[346587491,1735117850295,-500.0,9.786e-05,2]
[346587492,1735117850304,-727.79,9.786e-05,2]
[346587493,1735117850313,-500.0,9.786e-05,2]
[346587494,1735117850323,-500.0,9.786e-05,2]
[346587495,1735117850332,-500.0,9.786e-05,2]
[346587496,1735117850342,-500.0,9.786e-05,2]
[346587497,1735117850351,-500.0,9.786e-05,2]
[346587498,1735117850361,-633.01,9.786e-05,2]
[346587499,1735117850371,-500.0,9.786e-05,2]
[346587500,1735117850380,-500.0,9.786e-05,2]
[346587501,1735117850389,-333.75126756,9.786e-05,2]
[346587502,1735117850399,-681.48,9.786e-05,2]
[346587503,1735117850409,-1530.1,9.786e-05,2]
[346587504,1735117850418,-500.0,9.786e-05,2]
[346587505,1735117850428,-500.0,9.786e-05,2]
[346587506,1735117850441,-500.0,9.786e-05,2]
[346587507,1735117850451,-1157.62,9.786e-05,2]
[346587508,1735117850461,-547.96,9.786e-05,2]
[346587509,1735117850470,-500.0,9.786e-05,2]
[346587510,1735117850479,-1140.03,9.786e-05,2]
[346587511,1735117850489,-500.0,9.786e-05,2]
[346587512,1735117850499,-500.0,9.786e-05,2]
[346587513,1735117850508,-1111.99,9.786e-05,2]
[346587514,1735117850518,-500.0,9.786e-05,2]
[346587515,1735117850528,-500.0,9.786e-05,2]
[346587516,1735117850538,-2438.76,9.786e-05,2]
[346587517,1735117850548,-500.0,9.786e-05,2]
[346587518,1735117850558,-150.0,9.786e-05,2]
[346587519,1735117850568,-500.0,9.786e-05,2]
[346587520,1735117850578,-1053.34,9.786e-05,2]
[346587521,1735117850588,-500.0,9.786e-05,2]
[346587522,1735117850597,-1115.69,9.786e-05,2]
[346587523,1735117850607,-1624.17,9.786e-05,2]
[346587524,1735117850616,-603.43246518,9.786e-05,2]
[346587525,1735117850626,-500.0,9.786e-05,2]
[346587526,1735117850635,-953.2,9.786e-05,2]
[346587527,1735117850645,-740.1,9.786e-05,2]
[346587528,1735117850655,-500.0,9.786e-05,2]
[346587529,1735117850664,-500.0,9.786e-05,2]
[346587530,1735117850674,-1405.06,9.786e-05,2]
[346587531,1735117850683,-504.63959473,9.786e-05,2]
[346587532,1735117850693,-514.02,9.786e-05,2]
[346587533,1735117850703,-500.0,9.786e-05,2]
[346587534,1735117850713,-500.0,9.786e-05,2]
[346587535,1735117850722,-500.0,9.786e-05,2]
[346587536,1735117850732,-500.0,9.786e-05,2]
[346587537,1735117850742,-500.0,9.786e-05,2]
[346587538,1735117850751,-802.87,9.786e-05,2]
[346587539,1735117850761,-852.58,9.786e-05,2]
[346587540,1735117850771,-1414.45,9.786e-05,2]
[346587541,1735117850780,-500.0,9.786e-05,2]
[346587542,1735117850991,-500.0,9.786e-05,2]
[346587543,1735117851002,-1302.58,9.786e-05,2]
[346587544,1735117851011,-500.0,9.786e-05,2]
[346587545,1735117851021,-786.83,9.786e-05,2]
[346587546,1735117851030,-500.0,9.786e-05,2]
[346587547,1735117851041,-1874.05,9.786e-05,2]
[346587548,1735117851050,-500.0,9.786e-05,2]
[346587549,1735117851060,-664.95,9.786e-05,2]
[346587550,1735117851070,-582.75142802,9.786e-05,2]
[346587551,1735117851079,-2518.38,9.786e-05,2]
[346587552,1735117851088,-500.0,9.787e-05,2]
[346587553,1735117851097,-500.0,9.787e-05,2]
[346587554,1735117851107,-2518.38,9.787e-05,2]
[346587555,1735117851116,-538.31,9.788e-05,2]
[346587556,1735117851125,-538.31,9.788e-05,2]
[346587557,1735117851134,-437.0079381,9.788e-05,2]
[346587558,1735117851143,-2518.38,9.788e-05,2]
[346587559,1735117851152,-538.31,9.789e-05,2]
[346587560,1735117851161,-500.0,9.789e-05,2]
[346587561,1735117851170,-500.0,9.789e-05,2]
[346587562,1735117851179,-2518.38,9.789e-05,2]
[346587563,1735117851189,-538.31,9.79e-05,2]
[346587564,1735117851198,-1000.0,9.8e-05,2]
[346587565,1735117851207,-517.14,9.925e-05,2]
[346587566,1735117851217,-671.68,9.925e-05,2]
[346587567,1735117851225,-500.0,9.925e-05,2]
[346587568,1735117851235,-1656.87,9.925e-05,2]
[346587569,1735117851245,-1774.81,9.925e-05,2]
[346587570,1735117851254,-500.0,9.925e-05,2]
[346587571,1735117851263,-603.36,9.925e-05,2]
[346587572,1735117851273,-500.0,9.925e-05,2]
[346587573,1735117851282,-837.77,9.948e-05,2]
[346587574,1735117851291,-656.75,9.974e-05,2]
[346587575,1735117851299,-538.31,9.979e-05,2]
[346587576,1735117851308,-538.31,9.979e-05,2]
[346587577,1735117851317,-500.0,9.979e-05,2]
[346587578,1735117851326,-500.0,9.979e-05,2]
[346587579,1735117851335,-2698.73,9.979e-05,2]
[346587580,1735117851343,-2518.38,9.979e-05,2]
[346587581,1735117851353,-2518.38,9.979e-05,2]
[346587582,1735117851362,-327969.9163129,9.98e-05,2]
[346587583,1735117851372,-538.31,9.999e-05,2]
[346587584,1735117851381,-500.0,9.999e-05,2]
[346587585,1735117851391,-500.0,9.999e-05,2]
[346587586,1735117851400,-2698.73,9.999e-05,2]
[346587587,1735117851409,-2698.73,9.999e-05,2]
[346587588,1735117851419,-2518.38,9.999e-05,2]
[346587589,1735117851428,-244983.3019498,0.0001,2]
[346587590,1735117851438,-3000.0,0.0001,2]
[346587591,1735117851448,-3000.0,0.0001,2]
[346587592,1735117851457,-3000.0,0.0001,2]
[346587593,1735117851467,-3000.0,0.0001,2]
[346587594,1735117851476,-3000.0,0.0001,2]
[346587595,1735117851486,-3000.0,0.0001,2]
[346587596,1735117851495,-1043.06,0.00010056,2]
[346587597,1735117851505,-904.21,0.00010056,2]
[346587598,1735117851515,-3886.2,0.00010056,2]
[346587599,1735117851525,-2169.564913,0.00010056,2]
[346587600,1735117851534,-927.62,0.00010056,2]
[346587601,1735117851544,-2192.096285,0.00010056,2]
[346587602,1735117851554,-2290.64,0.00010056,2]
[346587603,1735117851563,-1192.78,0.00010056,2]
[346587604,1735117851573,-2727.3,0.00010056,2]
[346587605,1735117851583,-11195.79,0.00010056,2]
[346587606,1735117851592,-1697.71,0.00010056,2]
[346587607,1735117851602,-2031.97,0.00010056,2]
[346587608,1735117851611,-18232.47,0.00010056,2]
[346587609,1735117851621,-2425.67,0.00010056,2]
[346587610,1735117851631,-2431.41,0.00010056,2]
[346587611,1735117851640,-1319.35,0.00010056,2]
[346587612,1735117851650,-1705.73,0.00010056,2]
[346587613,1735117851659,-1455.68,0.00010056,2]
[346587614,1735117851669,-4249.34,0.00010056,2]
[346587615,1735117851678,-2035.34,0.00010056,2]
[346587616,1735117851688,-1181.45,0.00010056,2]
[346587617,1735117851698,-2184.72,0.00010056,2]
[346587618,1735117851707,-2969.9,0.00010056,2]
[346587619,1735117851717,-794.52,0.00010056,2]
[346587620,1735117851726,-4610.0,0.00010056,2]
[346587621,1735117851736,-11411.48,0.00010056,2]
[346587622,1735117851746,-710.85,0.00010056,2]
[346587623,1735117851755,-8152.95,0.00010056,2]
[346587624,1735117851765,-1030.08,0.00010056,2]
[346587625,1735117851774,-1105.32,0.00010056,2]
[346587626,1735117851784,-500.0,0.00010056,2]
[346587627,1735117851793,-13959.72,0.00010056,2]
[346587628,1735117851803,-6861.44,0.00010056,2]
[346587629,1735117851812,-3179.69,0.00010056,2]
[346587630,1735117851821,-874.56,0.00010056,2]
[346587631,1735117851831,-5297.19,0.00010056,2]
[346587632,1735117851840,-1747.14,0.00010056,2]
[346587633,1735117851850,-2696.63,0.00010056,2]
[346587634,1735117851859,-2175.41,0.00010056,2]
[346587635,1735117851868,-17942.02,0.00010056,2]
[346587636,1735117851878,-1505.74,0.00010056,2]
[346587637,1735117851887,-1366.65,0.00010056,2]
[346587638,1735117851897,-6812.2,0.00010056,2]
[346587639,1735117851906,-4250.85,0.00010056,2]
[346587640,1735117851915,-2175.17,0.00010056,2]
[346587641,1735117851924,-3909.61,0.00010056,2]
[346587642,1735117851934,-1311.64,0.00010056,2]
[346587643,1735117851943,-11477.78,0.00010056,2]
[346587644,1735117851952,-630.09,0.00010056,2]
[346587645,1735117851962,-2666.96,0.00010056,2]
[346587646,1735117851971,-9356.9,0.00010056,2]
[346587647,1735117851980,-1548.98,0.00010056,2]
[346587648,1735117851991,-500.0,0.00010056,2]
[346587649,1735117852001,-1677.12,0.00010056,2]
[346587650,1735117852011,-2964.29,0.00010056,2]
[346587651,1735117852020,-1544.07,0.00010056,2]
[346587652,1735117852029,-500.0,0.00010056,2]
[346587653,1735117852039,-1116.83,0.00010056,2]
[346587654,1735117852048,-1109.15,0.00010056,2]
[346587655,1735117852058,-2118.81,0.00010056,2]
[346587656,1735117852067,-2056.43,0.00010056,2]
[346587657,1735117852076,-961.74,0.00010056,2]
[346587658,1735117852086,-2938.95,0.00010056,2]
[346587659,1735117852095,-8109.9,0.00010056,2]
[346587660,1735117852104,-8632.96,0.00010056,2]
[346587661,1735117852113,-500.0,0.00010057,2]
[346587662,1735117852123,-500.0,0.00010057,2]
[346587663,1735117852134,-500.0,0.00010057,2]
[346587664,1735117852143,-608.11,0.00010057,2]
[346587665,1735117852153,-500.0,0.00010057,2]
[346587666,1735117852163,-500.0,0.00010057,2]
[346587667,1735117852172,-536.05689734,0.00010057,2]
[346587668,1735117852183,-958.82,0.00010057,2]
[346587669,1735117852193,-500.0,0.00010057,2]
[346587670,1735117852203,-623.99,0.00010057,2]
[346587671,1735117852212,-1088.96,0.00010057,2]
[346587672,1735117852222,-500.0,0.00010057,2]
[346587673,1735117852232,-500.0,0.00010057,2]
[346587674,1735117852241,-500.0,0.00010057,2]
[346587675,1735117852250,-780.47,0.00010057,2]
[346587676,1735117852260,-500.0,0.00010057,2]
[346587677,1735117852269,-721.71,0.00010057,2]
[346587678,1735117852279,-560.49,0.00010057,2]
[346587679,1735117852290,-500.0,0.00010057,2]
[346587680,1735117852299,-1723.1,0.00010057,2]
[346587681,1735117852308,-500.0,0.00010057,2]
[346587682,1735117852320,-538.33,0.00010057,2]
[346587683,1735117852330,-647.13,0.00010057,2]
[346587684,1735117852340,-538.45,0.00010057,2]
[346587685,1735117852349,-1009.34,0.00010057,2]
[346587686,1735117852358,-1129.45,0.00010057,2]
[346587687,1735117852370,-500.0,0.00010057,2]
[346587688,1735117852379,-1286.13,0.00010057,2]
[346587689,1735117852389,-500.0,0.00010057,2]
[346587690,1735117852398,-500.0,0.00010057,2]
[346587691,1735117852407,-912.77,0.00010057,2]
[346587692,1735117852418,-500.0,0.00010057,2]
[346587693,1735117852428,-663.49,0.00010057,2]
[346587694,1735117852440,-881.38,0.00010057,2]
[346587695,1735117852449,-892.6,0.00010057,2]
[346587696,1735117852459,-500.0,0.00010057,2]
[346587697,1735117852469,-513.55,0.00010057,2]
[346587698,1735117852479,-503.49,0.00010057,2]
[346587699,1735117852488,-713.93,0.00010057,2]
[346587700,1735117852497,-500.0,0.00010057,2]
[346587701,1735117852507,-544.64,0.00010057,2]
[346587702,1735117852516,-500.0,0.00010057,2]
[346587703,1735117852525,-500.0,0.00010057,2]
[346587704,1735117852535,-500.0,0.00010057,2]
[346587705,1735117852544,-532.46,0.00010057,2]
[346587706,1735117852553,-500.0,0.00010057,2]
[346587707,1735117852562,-500.0,0.00010057,2]
[346587708,1735117852571,-500.0,0.00010057,2]
[346587709,1735117852581,-500.0,0.00010057,2]
[346587710,1735117852590,-500.0,0.00010057,2]
[346587711,1735117852599,-500.0,0.00010057,2]
[346587712,1735117852608,-500.0,0.00010057,2]
[346587713,1735117852618,-321.15262833,0.00010057,2]
[346587714,1735117852627,-500.0,0.00010057,2]
[346587715,1735117852636,-1255.87,0.00010057,2]
[346587716,1735117852645,-500.0,0.00010057,2]
[346587717,1735117852654,-1240.34,0.00010057,2]
[346587718,1735117852663,-522.68,0.00010057,2]
[346587719,1735117852672,-500.0,0.00010057,2]
[346587720,1735117852684,-500.0,0.00010057,2]
[346587721,1735117852693,-500.0,0.00010057,2]
[346587722,1735117852702,-500.0,0.00010057,2]
[346587723,1735117852711,-500.0,0.00010057,2]
[346587724,1735117852721,-500.0,0.00010057,2]
[346587725,1735117852730,-500.0,0.00010057,2]
[346587726,1735117852739,-755.49,0.00010057,2]
[346587727,1735117852749,-500.0,0.00010057,2]
[346587728,1735117852758,-659.5,0.00010057,2]
[346587729,1735117852767,-500.0,0.00010057,2]
[346587730,1735117852776,-1302.94,0.00010057,2]
[346587731,1735117852785,-500.0,0.00010057,2]
[346587732,1735117852794,-510.7,0.00010057,2]
[346587733,1735117852804,-500.0,0.00010057,2]
[346587734,1735117852813,-500.0,0.00010057,2]
[346587735,1735117852822,-500.0,0.00010057,2]
[346587736,1735117852831,-500.0,0.00010057,2]
[346587737,1735117852840,-500.0,0.00010057,2]
[346587738,1735117852850,-738.21,0.00010057,2]
[346587739,1735117852859,-500.0,0.00010057,2]
[346587740,1735117852869,-500.0,0.00010057,2]
[346587741,1735117852879,-500.0,0.00010057,2]
[346587742,1735117852888,-500.0,0.00010057,2]
[346587743,1735117852897,-500.0,0.00010057,2]
[346587744,1735117852907,-705.71,0.00010057,2]
[346587745,1735117852916,-500.0,0.00010057,2]
[346587746,1735117852925,-500.0,0.00010057,2]
[346587747,1735117852935,-500.0,0.00010057,2]
[346587748,1735117852947,-680.79,0.00010057,2]
[346587749,1735117852957,-1875.18,0.00010057,2]
[346587750,1735117852966,-500.0,0.00010057,2]
[346587751,1735117852977,-506.07,0.00010057,2]
[346587752,1735117852987,-909.55,0.00010057,2]
[346587753,1735117853002,-500.0,0.00010057,2]
[346587754,1735117853015,-905.11,0.00010057,2]
[346587755,1735117853028,-747.0,0.00010057,2]
[346587756,1735117853040,-500.0,0.00010057,2]
[346587757,1735117853052,-627.23,0.00010057,2]
[346587758,1735117853064,-500.0,0.00010057,2]
[346587759,1735117853075,-500.0,0.00010057,2]
[346587760,1735117853086,-500.0,0.00010057,2]
[346587761,1735117853096,-500.0,0.00010057,2]
[346587762,1735117853107,-662.95,0.00010057,2]
[346587763,1735117853117,-743.1,0.00010057,2]
[346587764,1735117853126,-1079.92,0.00010057,2]
[346587765,1735117853135,-500.0,0.00010057,2]
[346587766,1735117853145,-500.0,0.00010057,2]
[346587767,1735117853154,-1863.85,0.00010057,2]
[346587768,1735117853164,-545.73,0.00010057,2]
[346587769,1735117853173,-500.0,0.00010057,2]
[346587770,1735117853182,-1001.51,0.00010057,2]
[346587771,1735117853191,-500.0,0.00010057,2]
[346587772,1735117853201,-681.79,0.00010057,2]
[346587773,1735117853211,-606.91,0.00010057,2]
[346587774,1735117853220,-785.04,0.00010057,2]
[346587775,1735117853230,-700.16,0.00010057,2]
[346587776,1735117853239,-500.0,0.00010057,2]
[346587777,1735117853248,-1153.48,0.00010057,2]
[346587778,1735117853257,-630.19,0.00010057,2]
[346587779,1735117853267,-1880.91,0.00010057,2]
[346587780,1735117853277,-500.0,0.00010057,2]
[346587781,1735117853286,-540.02421488,0.00010057,2]
[346587782,1735117853296,-500.0,0.00010057,2]
[346587783,1735117853305,-1328.23,0.00010057,2]
[346587784,1735117853315,-500.0,0.00010057,2]
[346587785,1735117853324,-500.0,0.00010057,2]
[346587786,1735117853489,-603.86,0.00010057,2]
[346587787,1735117853499,-1457.36,0.00010057,2]
[346587788,1735117853509,-500.0,0.00010057,2]
[346587789,1735117853518,-941.17,0.00010057,2]
[346587790,1735117853527,-500.0,0.00010057,2]
[346587791,1735117853538,-500.0,0.00010057,2]
[346587792,1735117853547,-1481.76,0.00010057,2]
[346587793,1735117853556,-500.0,0.00010057,2]
[346587794,1735117853566,-500.0,0.00010057,2]
[346587795,1735117853575,-1928.48,0.00010057,2]
[346587796,1735117853584,-500.0,0.00010057,2]
[346587797,1735117853594,-500.0,0.00010057,2]
[346587798,1735117853603,-500.0,0.00010057,2]
[346587799,1735117853612,-500.0,0.00010057,2]
[346587800,1735117853621,-1308.82,0.00010057,2]
[346587801,1735117853631,-724.72,0.00010057,2]
[346587802,1735117853640,-500.0,0.00010057,2]
[346587803,1735117853649,-975.36,0.00010057,2]
[346587804,1735117853658,-500.0,0.00010057,2]
[346587805,1735117853668,-500.0,0.00010057,2]
[346587806,1735117853678,-500.0,0.00010057,2]
[346587807,1735117853688,-500.0,0.00010057,2]
[346587808,1735117853698,-602.91,0.00010057,2]
[346587809,1735117853707,-500.0,0.00010057,2]
[346587810,1735117853716,-560.16,0.00010057,2]
[346587811,1735117853725,-500.0,0.00010057,2]
[346587812,1735117853734,-500.0,0.00010057,2]
[346587813,1735117853744,-620.13,0.00010057,2]
[346587814,1735117853753,-652.15,0.00010057,2]
[346587815,1735117853762,-500.0,0.00010057,2]
[346587816,1735117853772,-1670.43,0.00010057,2]
[346587817,1735117853781,-500.0,0.00010057,2]
[346587818,1735117853790,-1075.28,0.00010057,2]
[346587819,1735117853799,-500.0,0.00010057,2]
[346587820,1735117853808,-1945.39,0.00010057,2]
[346587821,1735117853817,-846.03,0.00010057,2]
[346587822,1735117853826,-500.0,0.00010057,2]
[346587823,1735117853835,-500.0,0.00010057,2]
[346587824,1735117853844,-975.39,0.00010057,2]
[346587825,1735117853853,-1332.17,0.00010057,2]
[346587826,1735117853862,-500.0,0.00010057,2]
[346587827,1735117853872,-956.71,0.00010057,2]
[346587828,1735117853881,-500.0,0.00010057,2]
[346587829,1735117853891,-1207.97,0.00010057,2]
[346587830,1735117853902,-500.0,0.00010057,2]
[346587831,1735117853912,-948.03,0.00010057,2]
[346587832,1735117853922,-1013.7,0.00010057,2]
[346587833,1735117853932,-3315.76,0.00010057,2]
[346587834,1735117853942,-984.52,0.00010057,2]
[346587835,1735117853951,-500.0,0.00010057,2]
[346587836,1735117853962,-988.66,0.00010057,2]
[346587837,1735117853972,-3631.76,0.00010057,2]
[346587838,1735117853982,-500.0,0.00010057,2]
[346587839,1735117853996,-500.0,0.00010057,2]
[346587840,1735117854006,-2698.73,0.00010057,2]
[346587841,1735117854015,-2698.73,0.00010057,2]
[346587842,1735117854026,-2698.73,0.00010057,2]
[346587843,1735117854036,-823.27,0.00010057,2]
[346587844,1735117854046,-1212.44,0.00010057,2]
[346587845,1735117854055,-562.4,0.00010057,2]
[346587846,1735117854064,-500.0,0.00010057,2]
[346587847,1735117854076,-3003.65,0.00010057,2]
[346587848,1735117854088,-6416.61,0.00010057,2]
[346587849,1735117854098,-1098.34,0.00010057,2]
[346587850,1735117854108,-500.0,0.00010057,2]
[346587851,1735117854118,-693.95,0.00010057,2]
[346587852,1735117854128,-512.38,0.00010057,2]
[346587853,1735117854137,-3485.28,0.00010057,2]
[346587854,1735117854148,-500.0,0.00010057,2]
[346587855,1735117854158,-4515.79,0.00010057,2]
[346587856,1735117854167,-1602.62,0.00010057,2]
[346587857,1735117854176,-592.79,0.00010057,2]
[346587858,1735117854186,-500.0,0.00010057,2]
[346587859,1735117854195,-388.59185562,0.00010057,2]
[346587860,1735117854205,-500.0,0.00010057,2]
[346587861,1735117854215,-3667.77,0.00010057,2]
[346587862,1735117854224,-5336.32,0.00010057,2]
[346587863,1735117854234,-500.0,0.00010057,2]
[346587864,1735117854243,-1421.85,0.00010057,2]
[346587865,1735117854253,-500.0,0.00010057,2]
[346587866,1735117854263,-744.77,0.00010057,2]
[346587867,1735117854274,-8169.93,0.00010057,2]
[346587868,1735117854285,-1176.95,0.00010057,2]
[346587869,1735117854294,-685.3,0.00010057,2]
[346587870,1735117854303,-823.87,0.00010057,2]
[346587871,1735117854314,-15792.16,0.00010057,2]
[346587872,1735117854323,-10376.57,0.00010057,2]
[346587873,1735117854333,-500.0,0.00010057,2]
[346587874,1735117854343,-500.0,0.00010057,2]
[346587875,1735117854351,-500.0,0.00010057,2]
[346587876,1735117854361,-808.52,0.00010057,2]
[346587877,1735117854371,-60587.19,0.00010057,2]
[346587878,1735117854380,-500.0,0.00010057,2]
[346587879,1735117854389,-3839.01,0.00010057,2]
[346587880,1735117854398,-1401.26,0.00010057,2]
[346587881,1735117854407,-500.0,0.00010057,2]
[346587882,1735117854417,-741.64,0.00010057,2]
[346587883,1735117854426,-500.0,0.00010057,2]
[346587884,1735117854436,-500.0,0.00010057,2]
[346587885,1735117854446,-6426.8,0.00010057,2]
[346587886,1735117854455,-1916.63,0.00010057,2]
[346587887,1735117854465,-754.49,0.00010057,2]
[346587888,1735117854475,-1771.53,0.00010057,2]
[346587889,1735117854484,-5505.76,0.00010057,2]
[346587890,1735117854494,-1886.16,0.00010057,2]
[346587891,1735117854504,-5583.29,0.00010057,2]
[346587892,1735117854513,-500.0,0.00010057,2]
[346587893,1735117854523,-500.0,0.00010057,2]
[346587894,1735117854533,-697.49,0.00010057,2]
[346587895,1735117854542,-500.0,0.00010057,2]
[346587896,1735117854551,-500.0,0.00010057,2]
[346587897,1735117854561,-3569.84,0.00010057,2]
[346587898,1735117854571,-500.0,0.00010057,2]
[346587899,1735117854580,-1020.56,0.00010057,2]
[346587900,1735117854590,-1263.03,0.00010057,2]
[346587901,1735117854600,-500.0,0.00010057,2]
[346587902,1735117854610,-938.09,0.00010057,2]
[346587903,1735117854619,-2701.93,0.00010057,2]
[346587904,1735117854629,-2122.18,0.00010057,2]
[346587905,1735117854638,-1965.68,0.00010057,2]
[346587906,1735117854648,-827.46,0.00010057,2]
[346587907,1735117854658,-500.0,0.00010057,2]
[346587908,1735117854667,-500.0,0.00010057,2]
[346587909,1735117854677,-525.89,0.00010057,2]
[346587910,1735117854687,-500.0,0.00010057,2]
[346587911,1735117854697,-6086.82,0.00010057,2]
[346587912,1735117854706,-500.0,0.00010057,2]
[346587913,1735117854716,-545.57651097,0.00010057,2]
[346587914,1735117854726,-500.0,0.00010057,2]
[346587915,1735117854735,-2979.62,0.00010057,2]
[346587916,1735117854744,-742.54,0.00010057,2]
[346587917,1735117854754,-6243.87,0.00010057,2]
[346587918,1735117854763,-7833.27,0.00010057,2]
[346587919,1735117854772,-500.0,0.00010057,2]
[346587920,1735117854782,-2900.32,0.00010057,2]
[346587921,1735117854791,-51531.12,0.00010057,2]
[346587922,1735117854801,-500.0,0.00010057,2]
[346587923,1735117854809,-506.65383964,0.00010057,2]
[346587924,1735117854818,-867.55,0.00010057,2]
[346587925,1735117854827,-1037.07,0.00010057,2]
[346587926,1735117854836,-1673.58,0.00010057,2]
[346587927,1735117854845,-3010.82,0.00010057,2]
[346587928,1735117854854,-1766.42,0.00010057,2]
[346587929,1735117854863,-500.0,0.00010057,2]
[346587930,1735117854873,-500.0,0.00010057,2]
[346587931,1735117854882,-647.8,0.00010057,2]
[346587932,1735117854892,-1176.23,0.00010057,2]
[346587933,1735117854901,-500.0,0.00010057,2]
[346587934,1735117854910,-635.94,0.00010057,2]
[346587935,1735117854919,-5192.49,0.00010057,2]
[346587936,1735117854929,-1392.83,0.00010057,2]
[346587937,1735117854939,-500.0,0.00010057,2]
[346587938,1735117854948,-678.44,0.00010057,2]
[346587939,1735117854957,-500.0,0.00010057,2]
[346587940,1735117854966,-500.0,0.00010057,2]
[346587941,1735117854976,-4936.19,0.00010057,2]
[346587942,1735117854986,-500.0,0.00010057,2]
[346587943,1735117855002,-500.0,0.00010057,2]
[346587944,1735117855012,-500.0,0.00010057,2]
[346587945,1735117855021,-500.0,0.00010057,2]
[346587946,1735117855031,-500.0,0.00010057,2]
[346587947,1735117855040,-500.0,0.00010057,2]
[346587948,1735117855049,-501.59,0.00010057,2]
[346587949,1735117855058,-500.0,0.00010057,2]
[346587950,1735117855068,-2490.11,0.00010057,2]
[346587951,1735117855077,-2800.26,0.00010057,2]
[346587952,1735117855087,-500.0,0.00010057,2]
[346587953,1735117855096,-996.99,0.00010057,2]
[346587954,1735117855106,-249.87720765,0.00010057,2]
[346587955,1735117855115,-500.0,0.00010057,2]
[346587956,1735117855124,-10107.36,0.00010057,2]
[346587957,1735117855134,-500.0,0.00010057,2]
[346587958,1735117855144,-500.0,0.00010057,2]
[346587959,1735117855153,-315.99276017,0.00010057,2]
[346587960,1735117855163,-651.98,0.00010057,2]
[346587961,1735117855172,-2202.6,0.00010057,2]
[346587962,1735117855182,-500.0,0.00010057,2]
[346587963,1735117855192,-1587.36,0.00010057,2]
[346587964,1735117855201,-1818.83,0.00010057,2]
[346587965,1735117855210,-557.03,0.00010057,2]
[346587966,1735117855219,-500.0,0.00010057,2]
[346587967,1735117855228,-2234.05,0.00010057,2]
[346587968,1735117855237,-1575.54,0.00010057,2]
[346587969,1735117855246,-551.87,0.00010057,2]
[346587970,1735117855256,-500.0,0.00010057,2]
[346587971,1735117855267,-1482.36,0.00010057,2]
[346587972,1735117855277,-596.65,0.00010057,2]
[346587973,1735117855287,-500.0,0.00010057,2]
[346587974,1735117855297,-500.0,0.00010057,2]
[346587975,1735117855308,-665.7,0.00010057,2]
[346587976,1735117855318,-500.0,0.00010057,2]
[346587977,1735117855328,-2097.09258903,0.00010057,2]
[346587978,1735117856053,-762.84,0.00010057,2]
[346587979,1735117856066,-88.83741097,0.00010057,2]